bitfinex-derivatives/quotes_BTCF0:USTF0_20250903
["timestamp","ask_amount","ask_price","bid_price","bid_amount"]
[1756872952480,0.36316843,110910.0,110900.0,0.09904]
[1756872952777,0.44481115,110910.0,110900.0,0.34904]
[1756872952974,0.07061611,110910.0,110900.0,0.34904]
[1756872953175,0.35102661,110910.0,110900.0,0.09904]
[1756872953375,0.72102661,110910.0,110900.0,0.20904]
[1756872953578,0.69102661,110910.0,110900.0,0.20904]
[1756872953780,0.35102661,110910.0,110900.0,0.20904]
[1756872954777,0.35202661,110910.0,110900.0,0.20904]
[1756872954978,0.68202661,110910.0,110900.0,0.20904]
[1756872955179,0.001,110910.0,110900.0,0.20904]
[1756872955379,0.35202661,110910.0,110900.0,0.20904]
[1756872955573,0.35302661,110910.0,110900.0,0.20904]
[1756872956584,1.19538661,110910.0,110900.0,0.20904]
[1756872956883,0.35302661,110910.0,110900.0,0.20904]
[1756872957085,0.002,110910.0,110900.0,0.45904]
[1756872957384,0.002,110910.0,110900.0,0.71904]
[1756872957777,0.002,110910.0,110900.0,1.07006661]
[1756872957979,0.002,110910.0,110900.0,1.91218661]
[1756872958581,0.002,110910.0,110900.0,1.56116]
[1756872958777,0.002,110910.0,110900.0,1.91218661]
[1756872959282,0.002,110910.0,110900.0,1.66218661]
[1756872961984,0.002,110910.0,110900.0,1.68282836]
[1756872966090,0.002,110910.0,110900.0,1.33180175]
[1756872966388,0.002,110910.0,110900.0,1.68282836]
[1756872967478,0.002,110910.0,110900.0,1.85876529]
[1756872968288,0.002,110910.0,110900.0,1.33132175]
[1756872968685,0.002,110910.0,110900.0,1.85828529]
[1756872969090,0.002,110910.0,110900.0,1.01664529]
[1756872969294,0.002,110910.0,110900.0,1.85820529]
[1756872969483,0.26548177,110910.0,110900.0,1.59472352]
[1756872970294,0.002,110910.0,110900.0,1.59472352]
[1756872970691,0.26548177,110910.0,110900.0,1.59472352]
[1756872970890,0.002,110910.0,110900.0,1.59472352]
[1756872971090,0.002,110910.0,110900.0,1.85820529]
[1756872971397,0.002,110910.0,110900.0,1.33124175]
[1756872971590,0.002,110910.0,110900.0,1.85820529]
[1756872978706,0.002,110910.0,110900.0,1.33124175]
[1756872978896,0.002,110910.0,110900.0,1.85820529]
[1756872979204,0.002,110910.0,110900.0,1.33124175]
[1756872979391,0.002,110910.0,110900.0,1.85820529]
[1756872982709,0.002,110910.0,110900.0,2.46185136]
[1756872983008,0.002,110910.0,110900.0,2.54281281]
[1756872983215,0.002,110910.0,110900.0,1.7523675]
[1756872983517,0.002,110910.0,110900.0,2.54281281]
[1756872984207,0.002,110910.0,110900.0,2.27933104]
[1756872988216,0.002,110910.0,110900.0,2.19836959]
[1756872988516,0.002,110910.0,110900.0,2.46216959]
[1756872989017,0.002,110910.0,110900.0,1.93520605]
[1756872989216,0.002,110910.0,110900.0,2.46216959]
[1756872989921,0.002,110910.0,110900.0,1.00348175]
[1756872990219,0.002,110910.0,110900.0,2.36880529]
[1756872990411,0.002,110910.0,110900.0,2.44988205]
[1756872991607,0.002,110910.0,110900.0,2.36880529]
[1756872991806,0.002,110910.0,110900.0,2.45896959]
[1756872992118,0.002,110910.0,110900.0,2.54004296]
[1756872992515,0.002,110910.0,110900.0,2.80352473]
[1756872992816,0.31187975,110960.0,110940.0,0.08341]
[1756872992817,0.26348177,110950.0,110940.0,0.08341]
[1756872993117,0.28667481,110950.0,110940.0,0.92165]
[1756872993510,0.28667481,110950.0,110940.0,0.93083439]
[1756872993916,0.02819304,110950.0,110940.0,1.19531616]
[1756872994110,0.29167481,110950.0,110940.0,1.21531616]
[1756872994311,0.29167481,110950.0,110940.0,0.95302439]
[1756872995012,0.36470941,110950.0,110940.0,0.95302439]
[1756872995216,0.10622764,110950.0,110940.0,0.95302439]
[1756872995426,0.36970941,110950.0,110940.0,0.95302439]
[1756872997422,0.34651637,110950.0,110940.0,0.95302439]
[1756872997621,0.34651637,110950.0,110940.0,1.21650616]
[1756872999820,0.01,110950.0,110940.0,1.83998793]
[1756873000227,0.01,110950.0,110940.0,1.00174793]
[1756873000426,0.01,110950.0,110940.0,1.31194439]
[1756873000636,0.01,110950.0,110940.0,1.00174793]
[1756873000825,0.01,110950.0,110940.0,1.83890793]
[1756873004431,0.01,110950.0,110940.0,2.17903943]
[1756873004832,0.01,110950.0,110940.0,2.08890793]
[1756873008432,0.01,110950.0,110940.0,1.25174793]
[1756873008633,0.01,110950.0,110940.0,2.08874793]
[1756873009034,0.01,110950.0,110940.0,1.5152297]
[1756873009238,0.01,110950.0,110940.0,2.10881006]
[1756873009935,0.01,110950.0,110940.0,2.19894166]
[1756873011433,0.005,110950.0,110940.0,2.19794166]
[1756873011638,0.007,110950.0,110940.0,2.19794166]
[1756873012138,0.003,110950.0,110940.0,2.19794166]
[1756873013039,0.003,110950.0,110940.0,1.36146166]
[1756873013241,0.003,110950.0,110940.0,2.19730166]
[1756873013542,0.003,110950.0,110940.0,1.36146166]
[1756873013735,0.003,110950.0,110940.0,2.19710166]
[1756873014538,0.003,110950.0,110940.0,1.27133006]
[1756873014733,0.003,110950.0,110940.0,2.10669006]
[1756873015232,0.003,110950.0,110940.0,2.10665006]
[1756873019247,0.003,110950.0,110940.0,1.85665006]
[1756873019546,0.003,110950.0,110940.0,1.02133006]
[1756873019745,0.003,110950.0,110940.0,1.85565006]
[1756873023747,0.003,110950.0,110940.0,1.94578156]
[1756873024047,0.003,110950.0,110940.0,2.47306333]
[1756873024453,0.0022906,110950.0,110940.0,2.47306333]
[1756873024842,0.0022906,110950.0,110940.0,2.55412836]
[1756873025446,0.0022906,110950.0,110940.0,2.80412836]
[1756873025651,0.0022906,110950.0,110940.0,2.72306333]
[1756873026148,0.0012906,110950.0,110940.0,2.72306333]
[1756873026852,0.26348177,111000.0,110960.0,0.03493]
[1756873027047,0.28662084,111000.0,110990.0,0.26348177]
[1756873027244,0.28662084,111000.0,110990.0,1.01618177]
[1756873027750,0.28662084,111000.0,110990.0,1.32618177]
[1756873028056,0.28862084,111000.0,110990.0,1.32618177]
[1756873028353,0.02513907,111000.0,110990.0,1.33640208]
[1756873028554,0.28862084,111000.0,110990.0,1.33640208]
[1756873028945,0.02513907,111000.0,110990.0,1.33640208]
[1756873029147,0.27248177,111000.0,110990.0,1.33640208]
[1756873029447,0.03212781,111000.0,110990.0,1.07292031]
[1756873029649,0.007,111000.0,110990.0,1.07292031]
[1756873029947,0.01,111000.0,110990.0,1.07392031]
[1756873030341,0.36079386,111000.0,110990.0,0.04904]
[1756873030542,0.63391452,111000.0,110990.0,0.00219]
[1756873031454,0.63391452,111000.0,110990.0,0.02569]
[1756873031750,0.63391452,111000.0,110990.0,0.00219]
[1756873036448,1.34470838,111000.0,110990.0,0.00219]
[1756873036749,1.39310636,111000.0,110990.0,0.00219]
[1756873036943,2.22714636,111000.0,110990.0,0.00219]
[1756873037150,2.22714636,111000.0,110980.0,0.0001]
[1756873037355,0.60079386,110990.0,110980.0,0.0001]
[1756873037554,1.0223125,110990.0,110970.0,0.02099637]
[1756873037856,0.35079386,110980.0,110970.0,0.14099637]
[1756873038049,0.37391452,110980.0,110970.0,0.14089637]
[1756873038859,0.37291452,110980.0,110970.0,0.14089637]
[1756873039259,0.73591452,110980.0,110970.0,0.14089637]
[1756873039558,0.37591452,110980.0,110970.0,0.14089637]
[1756873039752,0.72991452,110980.0,110970.0,0.14089637]
[1756873040259,0.73191452,110980.0,110970.0,0.14089637]
[1756873040458,0.73391452,110980.0,110970.0,0.14189637]
[1756873041060,0.03312066,110980.0,110970.0,0.14189637]
[1756873041358,0.38391452,110980.0,110970.0,0.22548637]
[1756873041551,0.38391452,110980.0,110970.0,0.16539637]
[1756873041752,0.38391452,110980.0,110970.0,0.14189637]
[1756873042548,0.39312202,110980.0,110970.0,0.14189637]
[1756873044451,0.39312202,110980.0,110970.0,0.121]
[1756873047362,0.39312202,110980.0,110970.0,0.1445]
[1756873047861,0.72312202,110980.0,110970.0,0.121]
[1756873048065,1.80564202,110980.0,110970.0,0.001]
[1756873051364,1.49564202,110980.0,110970.0,0.001]
[1756873051558,1.84564202,110980.0,110970.0,0.001]
[1756873054665,0.35079386,110970.0,110960.0,0.0046]
[1756873054867,0.35079386,110970.0,110960.0,0.0045]
[1756873054868,0.74391452,110970.0,110960.0,0.0045]
[1756873055858,0.75191452,110970.0,110960.0,0.0055]
[1756873056060,0.38191452,110970.0,110960.0,0.0055]
[1756873056567,0.69191452,110970.0,110960.0,0.0055]
[1756873056968,0.38191452,110970.0,110960.0,0.0055]
[1756873057268,0.74191452,110970.0,110960.0,0.0055]
[1756873058069,0.75191452,110970.0,110960.0,0.0245]
[1756873058270,1.21411452,110970.0,110960.0,0.08527]
[1756873058462,1.54411452,110970.0,110960.0,0.08527]
[1756873058761,1.21411452,110970.0,110960.0,0.08527]
[1756873059468,0.38191452,110970.0,110960.0,0.08527]
[1756873059664,0.95807452,110970.0,110960.0,0.08527]
[1756873060263,0.95807452,110970.0,110960.0,0.04827]
[1756873061461,0.95807452,110970.0,110960.0,0.08527]
[1756873061770,0.38191452,110970.0,110960.0,0.08527]
[1756873061961,1.21387452,110970.0,110960.0,0.08527]
[1756873062462,1.21383452,110970.0,110960.0,0.08527]
[1756873062667,0.38191452,110970.0,110960.0,0.08527]
[1756873062869,0.38191452,110970.0,110960.0,0.33527]
[1756873063266,0.03112066,110970.0,110960.0,0.33527]
[1756873063568,0.38191452,110970.0,110960.0,0.33527]
[1756873070867,0.03112066,110970.0,110960.0,0.08527]
[1756873071069,0.03112066,110970.0,110960.0,0.10527]
[1756873073367,0.03112066,110970.0,110960.0,0.08527]
[1756873073576,0.38191452,110970.0,110960.0,0.08527]
[1756873073760,0.38191452,110970.0,110960.0,0.0245]
[1756873073961,1.59207452,110970.0,110960.0,0.001]
[1756873077275,1.84207452,110970.0,110960.0,0.001]
[1756873079178,1.59207452,110970.0,110960.0,0.001]
[1756873082269,1.6404725,110970.0,110960.0,0.001]
[1756873082780,1.59207452,110970.0,110960.0,0.001]
[1756873083171,1.6404725,110970.0,110960.0,0.001]
[1756873083364,1.8904725,110970.0,110960.0,0.001]
[1756873083575,1.99126636,110970.0,110960.0,0.001]
[1756873084178,1.6404725,110970.0,110960.0,0.001]
[1756873084478,0.8103125,110970.0,110960.0,0.001]
[1756873084673,1.6395925,110970.0,110960.0,0.001]
[1756873086079,1.28879864,110970.0,110960.0,0.001]
[1756873086378,1.6395925,110970.0,110960.0,0.001]
[1756873086982,0.8103125,110970.0,110960.0,0.001]
[1756873087183,1.6393525,110970.0,110960.0,0.001]
[1756873090677,0.07951864,110970.0,110960.0,0.04936]
[1756873090887,1.0950725,110970.0,110960.0,0.08416]
[1756873091182,1.21039452,110970.0,110960.0,0.08416]
[1756873091685,1.3862629,110970.0,110960.0,0.05386]
[1756873091883,1.3862629,110970.0,110960.0,0.02897]
[1756873092274,1.3862629,110970.0,110960.0,0.05171]
[1756873094584,1.7062629,110970.0,110960.0,0.05171]
[1756873094775,1.7062629,110970.0,110960.0,0.08651]
[1756873094975,0.8777829,110970.0,110960.0,0.08651]
[1756873095176,1.3857829,110970.0,110960.0,0.08651]
[1756873097783,0.5577829,110970.0,110960.0,0.08651]
[1756873097986,1.3856229,110970.0,110960.0,0.08651]
[1756873098584,0.03112066,110970.0,110960.0,0.08651]
[1756873098784,1.3855429,110970.0,110960.0,0.08651]
[1756873100280,1.3855429,110970.0,110960.0,0.05171]
[1756873100672,0.85888066,110970.0,110960.0,0.05171]
[1756873100879,1.3855429,110970.0,110960.0,0.08651]
[1756873101484,1.3855429,110970.0,110960.0,0.05171]
[1756873102086,1.43394088,110970.0,110960.0,0.05171]
[1756873103173,1.43382088,110970.0,110960.0,0.08651]
[1756873103777,1.43382088,110970.0,110960.0,0.05171]
[1756873104475,1.76382088,110970.0,110960.0,0.0055]
[1756873104676,2.277152,110970.0,110960.0,0.001]
[1756873104878,2.277152,110970.0,110950.0,0.01504]
[1756873105080,0.78999336,110960.0,110950.0,0.01504]
[1756873105386,1.13311402,110960.0,110950.0,0.01494]
[1756873105787,1.13311402,110960.0,110940.0,0.08111]
[1756873105982,1.35430224,110950.0,110940.0,0.45561]
[1756873106286,1.11409178,110950.0,110940.0,0.45551]
[1756873107484,1.11609178,110950.0,110940.0,0.45551]
[1756873108082,1.11509178,110950.0,110940.0,0.45551]
[1756873108279,1.3784229,110950.0,110940.0,0.45551]
[1756873108582,1.3784229,110950.0,110940.0,0.42071]
[1756873108781,1.3814229,110950.0,110940.0,0.42171]
[1756873109978,1.45384467,110950.0,110940.0,0.42171]
[1756873110881,1.80384467,110950.0,110940.0,0.3755]
[1756873111386,1.45384467,110950.0,110940.0,0.3755]
[1756873111591,1.45384467,110950.0,110940.0,0.39897]
[1756873112389,1.45384467,110950.0,110940.0,0.02897]
[1756873112591,1.45384467,110950.0,110940.0,0.0055]
[1756873113787,1.45384467,110950.0,110940.0,0.02897]
[1756873115285,1.83384467,110950.0,110940.0,0.02897]
[1756873117084,0.92718243,110950.0,110940.0,0.02897]
[1756873117390,1.81384467,110950.0,110940.0,0.0055]
[1756873119693,1.79488467,110950.0,110940.0,0.0055]
[1756873120594,2.30821579,110950.0,110940.0,0.0055]
[1756873120989,2.35661377,110950.0,110940.0,0.0055]
[1756873121192,2.35661377,110950.0,110930.0,0.0001]
[1756873121401,1.61767336,110940.0,110930.0,0.0001]
[1756873121594,1.98079402,110940.0,110920.0,0.08458]
[1756873121792,0.52666224,110930.0,110920.0,0.42458]
[1756873121994,0.5497829,110930.0,110920.0,0.13448]
[1756873122188,0.5487829,110930.0,110920.0,0.13448]
[1756873123299,0.5487829,110930.0,110920.0,0.09717]
[1756873123490,1.7064629,110930.0,110920.0,0.09717]
[1756873123689,1.3764629,110930.0,110920.0,0.13448]
[1756873123891,1.3784629,110930.0,110920.0,0.13448]
[1756873124290,1.3824629,110930.0,110920.0,0.13448]
[1756873124491,1.3824629,110930.0,110920.0,0.08448]
[1756873126200,0.5547829,110930.0,110920.0,0.08448]
[1756873126395,1.3825029,110930.0,110920.0,0.08448]
[1756873126597,1.39169206,110930.0,110920.0,0.08448]
[1756873129901,1.39169206,110930.0,110920.0,0.04717]
[1756873132597,1.71169206,110930.0,110910.0,0.1055646]
[1756873132794,0.52666224,110920.0,110910.0,0.4482546]
[1756873132992,0.52666224,110920.0,110910.0,0.4854646]
[1756873133697,0.52666224,110920.0,110910.0,0.46448]
[1756873133898,0.52666224,110920.0,110910.0,0.46548]
[1756873134097,0.52766224,110920.0,110910.0,0.46548]
[1756873134295,0.001,110920.0,110910.0,0.46548]
[1756873134696,0.52766224,110920.0,110910.0,0.46448]
[1756873134890,0.55374016,110920.0,110910.0,0.46548]
[1756873135898,0.004,110920.0,110910.0,0.99961672]
[1756873136102,0.26733112,110920.0,110910.0,0.7362856]
[1756873136303,0.26733112,110920.0,110910.0,0.99961672]
[1756873136895,0.004,110920.0,110910.0,0.99961672]
[1756873137102,0.004,110920.0,110910.0,0.7362856]
[1756873137405,0.004,110920.0,110910.0,0.99961672]
[1756873139206,0.004,110920.0,110910.0,0.74961672]
[1756873140294,0.004,110920.0,110910.0,0.4862856]
[1756873140498,0.004,110920.0,110910.0,0.74961672]
[1756873142006,0.004,110920.0,110910.0,0.4862856]
[1756873142205,0.004,110920.0,110910.0,0.74961672]
[1756873145005,0.004,110920.0,110910.0,1.26294784]
[1756873145194,0.004,110920.0,110910.0,1.52674784]
[1756873145400,0.07242177,110950.0,110940.0,0.04717]
[1756873145600,0.33656066,110950.0,110940.0,0.08448]
[1756873145801,0.33656066,110950.0,110940.0,0.34781112]
[1756873146305,0.31333112,110950.0,110940.0,0.34781112]
[1756873146603,0.31333112,110950.0,110940.0,0.34881112]
[1756873146807,0.31933112,110950.0,110940.0,0.34881112]
[1756873147007,0.32433112,110950.0,110940.0,0.34881112]
[1756873149205,0.32433112,110950.0,110940.0,0.67881112]
[1756873149706,0.27433112,110950.0,110940.0,0.34881112]
[1756873151001,0.27433112,110950.0,110940.0,0.36881112]
[1756873153406,0.011,110950.0,110940.0,0.10548]
[1756873158620,0.011,110950.0,110940.0,0.81658476]
[1756873159619,0.011,110950.0,110940.0,1.64410476]
[1756873161418,0.011,110950.0,110940.0,1.89410476]
[1756873161923,0.011,110950.0,110940.0,1.96521365]
[1756873164322,0.011,110950.0,110940.0,1.13769365]
[1756873164523,0.011,110950.0,110940.0,1.96513365]
[1756873174438,0.011,110950.0,110940.0,1.71513365]
[1756873175423,0.011,110950.0,110940.0,1.71497365]
[1756873178235,0.011,110950.0,110940.0,1.97873365]
[1756873178434,0.011,110950.0,110940.0,1.71493365]
[1756873181533,0.011,110950.0,110940.0,0.88769365]
[1756873181737,0.011,110950.0,110940.0,1.71489365]
[1756873184940,0.011,110950.0,110940.0,1.36378889]
[1756873185140,0.011,110950.0,110940.0,1.71489365]
[1756873194034,0.011,110950.0,110940.0,2.00009223]
[1756873194239,0.011,110950.0,110940.0,2.34022373]
[1756873194240,0.00531,110950.0,110940.0,2.34022373]
[1756873194438,0.00531,110950.0,110940.0,2.42128876]
[1756873199346,0.00531,110950.0,110940.0,2.17128876]
[1756873201245,0.00531,110950.0,110940.0,2.42128876]
[1756873203055,0.00531,110950.0,110940.0,2.15748876]
[1756873203448,0.00531,110950.0,110940.0,1.33028876]
[1756873203748,0.00531,110950.0,110940.0,1.24015726]
[1756873203957,0.00531,110950.0,110940.0,0.99015726]
[1756873204250,0.00531,110950.0,110940.0,1.81703726]
[1756873206744,0.00531,110950.0,110940.0,1.73597223]
[1756873207042,0.00531,110950.0,110940.0,1.81703726]
[1756873209250,0.00531,110950.0,110940.0,1.73597223]
[1756873209949,0.00531,110950.0,110940.0,1.38486747]
[1756873210149,0.00531,110950.0,110940.0,1.73597223]
[1756873211551,0.00531,110950.0,110940.0,1.82610383]
[1756873212149,0.00531,110950.0,110940.0,2.15716886]
[1756873212447,0.00531,110950.0,110940.0,2.07610383]
[1756873212648,0.00531,110950.0,110940.0,2.18926322]
[1756873213457,0.00531,110950.0,110940.0,2.62761947]
[1756873215552,0.26315367,111000.0,110990.0,0.04759]
[1756873215851,0.29529694,111000.0,110990.0,0.87431]
[1756873216040,0.29529694,111000.0,110990.0,0.04759]
[1756873216443,0.28610729,111000.0,110990.0,0.04759]
[1756873217350,0.29410729,111000.0,110990.0,0.04859]
[1756873217850,0.30210729,111000.0,110990.0,0.04859]
[1756873218053,0.29410729,111000.0,110990.0,0.31074367]
[1756873218254,0.29510729,111000.0,110990.0,0.31174367]
[1756873218752,0.29510729,111000.0,110990.0,0.04859]
[1756873220053,0.30429423,111000.0,110990.0,0.04859]
[1756873221154,0.30429423,111000.0,110990.0,0.31174367]
[1756873221455,0.30429423,111000.0,110990.0,0.04859]
[1756873221854,0.30429423,111000.0,110990.0,0.001]
[1756873222054,0.5674479,111000.0,110990.0,0.001]
[1756873223551,0.04114056,111000.0,110990.0,0.0238]
[1756873223756,0.5674479,111000.0,110990.0,0.0238]
[1756873223957,0.03195362,111000.0,110990.0,0.04859]
[1756873224151,0.55826096,111000.0,110990.0,0.04859]
[1756873224456,0.55826096,111000.0,110990.0,0.31174367]
[1756873224657,0.03195362,111000.0,110990.0,0.28695367]
[1756873224958,0.55826096,111000.0,110990.0,0.28695367]
[1756873225150,0.55826096,111000.0,110990.0,0.31174367]
[1756873225346,0.55826096,111000.0,110990.0,0.04859]
[1756873226756,0.55826096,111000.0,110990.0,0.08353]
[1756873227145,0.03195362,111000.0,110990.0,0.34668367]
[1756873227349,0.29510729,111000.0,110990.0,0.34668367]
[1756873230055,0.29510729,111000.0,110990.0,0.36668367]
[1756873231053,0.03195362,111000.0,110990.0,0.36668367]
[1756873231452,0.03195362,111000.0,110990.0,0.34668367]
[1756873231656,0.03195362,111000.0,110990.0,0.96751876]
[1756873231956,0.009,111000.0,110990.0,0.96751876]
[1756873232355,0.009,111000.0,110990.0,1.79395876]
[1756873232557,0.007,111000.0,110990.0,1.79295876]
[1756873232855,0.003,111000.0,110990.0,1.79295876]
[1756873233357,0.002,111000.0,110990.0,1.79295876]
[1756873234262,0.002,111000.0,110990.0,1.79291876]
[1756873235849,0.002,111000.0,110990.0,0.96651876]
[1756873236050,0.002,111000.0,110990.0,1.79287876]
[1756873239459,0.002,111000.0,110990.0,1.79283876]
[1756873242667,0.002,111000.0,110990.0,0.96651876]
[1756873242864,0.002,111000.0,110990.0,1.79275876]
[1756873243764,0.002,111000.0,110990.0,0.96651876]
[1756873244069,0.002,111000.0,110990.0,1.79275876]
[1756873245266,0.002,111000.0,110990.0,0.96651876]
[1756873245474,0.26515367,111000.0,110990.0,0.71651876]
[1756873245863,0.26515367,111000.0,110990.0,1.54271876]
[1756873246267,0.26515367,111000.0,110990.0,0.71651876]
[1756873246468,0.26515367,111000.0,110990.0,1.54271876]
[1756873247970,0.26515367,111000.0,110990.0,0.71651876]
[1756873248171,0.26515367,111000.0,110990.0,1.54267876]
[1756873250075,0.26515367,111000.0,110990.0,1.27952509]
[1756873250267,0.26515367,111000.0,110990.0,1.54267876]
[1756873250469,0.26515367,111000.0,110990.0,1.19267876]
[1756873251774,0.002,111000.0,110990.0,1.19267876]
[1756873251969,0.26515367,111000.0,110990.0,1.19267876]
[1756873253765,0.26515367,111000.0,110990.0,0.36651876]
[1756873253971,0.77830734,111000.0,110990.0,0.92944509]
[1756873254367,0.77830734,111000.0,110990.0,1.19259876]
[1756873254768,0.80127486,111000.0,110990.0,0.08253]
[1756873255682,0.80127486,111000.0,110990.0,0.04759]
[1756873256872,0.80127486,111000.0,110990.0,0.08189]
[1756873258274,0.80127486,111000.0,110990.0,0.04759]
[1756873259180,0.55127486,111000.0,110990.0,0.04759]
[1756873260077,1.18127486,111000.0,110990.0,0.04759]
[1756873260281,1.18127486,111000.0,110980.0,0.0814]
[1756873260282,1.16127486,111000.0,110980.0,0.0814]
[1756873260472,0.52630734,110990.0,110980.0,0.12299]
[1756873260673,0.28612119,110990.0,110980.0,0.12289]
[1756873260978,0.28612119,110990.0,110980.0,0.147]
[1756873261377,0.28612119,110990.0,110980.0,0.1813]
[1756873261770,0.28612119,110990.0,110980.0,0.147]
[1756873262081,0.29528434,110990.0,110980.0,0.147]
[1756873262380,0.29528434,110990.0,110980.0,0.148]
[1756873262582,0.29528434,110990.0,110980.0,0.1823]
[1756873262880,0.29728434,110990.0,110980.0,0.1813]
[1756873263076,0.29728434,110990.0,110980.0,0.0813]
[1756873263790,0.30028434,110990.0,110980.0,0.0813]
[1756873264474,0.29728434,110990.0,110980.0,0.0813]
[1756873264675,0.30128434,110990.0,110980.0,0.0813]
[1756873270187,0.30119208,110990.0,110980.0,0.0813]
[1756873271081,0.30119159,110990.0,110980.0,0.0813]
[1756873275589,0.38899622,110990.0,110980.0,0.0813]
[1756873277190,0.38899622,110990.0,110980.0,0.047]
[1756873277986,0.99899622,110990.0,110970.0,0.08402]
[1756873278191,0.3509583,110980.0,110970.0,0.37402]
[1756873278392,0.3509583,110980.0,110970.0,0.37392]
[1756873279288,0.37384525,110980.0,110970.0,0.37392]
[1756873279993,0.37684525,110980.0,110970.0,0.37392]
[1756873280195,0.74684525,110980.0,110970.0,0.33705]
[1756873280392,1.57276525,110980.0,110970.0,0.33705]
[1756873280591,1.20276525,110980.0,110970.0,0.33705]
[1756873282883,1.20276525,110980.0,110970.0,0.37392]
[1756873283084,0.85180695,110980.0,110970.0,0.37392]
[1756873283293,0.37684525,110980.0,110970.0,0.37392]
[1756873283593,1.20276525,110980.0,110970.0,0.37392]
[1756873286900,1.20276525,110980.0,110970.0,0.18392]
[1756873287093,1.20276525,110980.0,110970.0,0.14705]
[1756873288200,1.20276525,110980.0,110970.0,0.18392]
[1756873290296,0.37684525,110980.0,110970.0,0.18392]
[1756873290598,1.14392525,110980.0,110970.0,0.18392]
[1756873290902,0.37684525,110980.0,110970.0,0.18392]
[1756873291505,0.02588695,110980.0,110970.0,1.07564919]
[1756873294601,0.003,110980.0,110970.0,1.07564919]
[1756873295803,0.00919077,111010.0,111000.0,0.09845]
[1756873296005,0.1201,111010.0,111000.0,0.09845]
[1756873296298,0.14302204,111010.0,111000.0,0.09845]
[1756873298000,0.14702204,111010.0,111000.0,0.8094083]
[1756873298206,0.0061,111010.0,111000.0,0.8094083]
[1756873300302,0.0061,111010.0,111000.0,0.89060455]
[1756873303400,0.0061,111010.0,111000.0,1.14060455]
[1756873304508,0.0061,111010.0,111000.0,1.49156285]
[1756873304809,0.0061,111010.0,111000.0,1.14060455]
[1756873306807,0.0061,111010.0,111000.0,1.49156285]
[1756873307201,0.0061,111010.0,111000.0,1.96760455]
[1756873308301,0.0061,111010.0,111000.0,1.14060455]
[1756873308701,0.0061,111010.0,111000.0,1.96736455]
[1756873309814,0.0061,111010.0,111000.0,1.96724455]
[1756873310413,0.0061,111010.0,111000.0,0.78964625]
[1756873310615,0.0061,111010.0,111000.0,1.96716455]
[1756873311813,0.0061,111010.0,111000.0,1.96708455]
[1756873316819,0.0061,111010.0,111000.0,1.96644455]
[1756873317513,0.0061,111010.0,111000.0,0.89060455]
[1756873318017,0.0061,111010.0,111000.0,1.71648455]
[1756873322313,0.0061,111010.0,111000.0,0.89060455]
[1756873322617,0.0061,111010.0,111000.0,1.71624455]
[1756873323218,0.0061,111010.0,111000.0,2.06720285]
[1756873323621,0.0061,111010.0,111000.0,2.40728555]
[1756873324719,0.0061,111010.0,111000.0,2.31720285]
[1756873326324,0.0061,111010.0,111000.0,2.40728555]
[1756873328320,0.0021,111010.0,111000.0,2.40728555]
[1756873328524,0.0041,111010.0,111000.0,2.40728555]
[1756873329026,0.0021,111010.0,111000.0,2.40728555]
[1756873329228,0.0021,111010.0,111000.0,2.40828555]
[1756873333523,0.0001,111020.0,111010.0,0.0900746]
[1756873333731,0.0001,111030.0,111020.0,0.08334]
[1756873333931,0.0001,111040.0,111030.0,0.08334]
[1756873334128,0.0001,111050.0,111030.0,0.7542983]
[1756873334437,0.02292573,111050.0,111040.0,1.2626183]
[1756873334621,0.27282573,111050.0,111040.0,0.7442983]
[1756873334825,0.02282573,111050.0,111040.0,1.5725383]
[1756873335431,0.02282573,111050.0,111040.0,1.74726354]
[1756873335828,0.02682573,111050.0,111040.0,1.74726354]
[1756873336234,0.03282573,111050.0,111040.0,1.74826354]
[1756873336833,0.03282573,111050.0,111040.0,0.92002354]
[1756873337034,0.03282573,111050.0,111040.0,1.74806354]
[1756873338934,0.03282573,111050.0,111040.0,1.22238]
[1756873339126,0.03282573,111050.0,111040.0,1.74806354]
[1756873340721,0.03282573,111050.0,111040.0,1.75705641]
[1756873341736,0.28282573,111050.0,111040.0,1.75705641]
[1756873344036,0.03282573,111050.0,111040.0,1.75705641]
[1756873345539,0.03282573,111050.0,111040.0,2.00705641]
[1756873345740,0.03282573,111050.0,111040.0,2.26989818]
[1756873346040,0.03282573,111050.0,111040.0,2.00705641]
[1756873347537,0.01,111050.0,111040.0,2.00705641]
[1756873349644,0.01,111050.0,111040.0,2.26989818]
[1756873349840,0.01,111050.0,111040.0,2.01989818]
[1756873350346,0.01,111050.0,111040.0,2.26989818]
[1756873350940,0.01,111050.0,111040.0,2.35994838]
[1756873352251,0.01,111050.0,111040.0,1.53190838]
[1756873352454,0.0101,111050.0,111040.0,2.35878838]
[1756873352949,0.0101,111050.0,111040.0,2.26873818]
[1756873353950,0.0101,111050.0,111040.0,1.44185818]
[1756873354150,0.0101,111050.0,111040.0,2.26849818]
[1756873355752,0.0101,111050.0,111040.0,1.44185818]
[1756873356051,0.0101,111050.0,111040.0,2.26849818]
[1756873356253,0.0101,111050.0,111040.0,2.26841818]
[1756873356454,0.0101,111050.0,111040.0,1.44185818]
[1756873356656,0.0101,111050.0,111040.0,2.26837818]
[1756873358551,0.0101,111050.0,111040.0,2.26833818]
[1756873362665,0.0101,111050.0,111040.0,1.44185818]
[1756873362859,0.0101,111050.0,111040.0,2.26797818]
[1756873365569,0.0101,111050.0,111040.0,2.26745818]
[1756873365763,0.0101,111050.0,111040.0,1.44185818]
[1756873365969,0.0101,111050.0,111040.0,1.75457641]
[1756873368962,0.0101,111050.0,111040.0,1.75449641]
[1756873369265,0.0041,111050.0,111040.0,1.75349641]
[1756873369469,0.0051,111050.0,111040.0,1.75349641]
[1756873374474,0.0051,111050.0,111040.0,2.01633818]
[1756873375168,0.0051,111050.0,111040.0,2.09729649]
[1756873375371,0.0051,111050.0,111040.0,1.83441472]
[1756873378674,0.2551,111050.0,111040.0,1.75345641]
[1756873379378,0.0051,111050.0,111040.0,1.75345641]
[1756873397590,0.0051,111050.0,111040.0,1.57817814]
[1756873401292,0.0031,111050.0,111040.0,1.57817814]
[1756873401497,0.0031,111050.0,111040.0,0.75273814]